fUSD/lending_fUSD_20250201
["ID","MTS","AMOUNT","RATE_DAILY","PERIOD"]
[351181472,1738399842224,-500.0,0.00016438,2]
[351181473,1738399842234,-500.0,0.00016438,2]
[351181474,1738399842243,-1273.65,0.00016438,2]
[351181475,1738399842252,-500.0,0.00016438,2]
[351181476,1738399842261,-500.0,0.00016438,2]
[351181477,1738399842271,-879.55,0.00016438,2]
[351181478,1738399842280,-601.78,0.00016438,2]
[351181479,1738399842290,-1015.54,0.00016438,2]
[351181480,1738399842299,-500.0,0.00016438,2]
[351181481,1738399842308,-500.0,0.00016438,2]
[351181482,1738399842319,-500.0,0.00016438,2]
[351181483,1738399842328,-2958.79,0.00016438,2]
[351181484,1738399842337,-500.0,0.00016438,2]
[351181485,1738399842346,-761.06,0.00016438,2]
[351181486,1738399842356,-572.04,0.00016438,2]
[351181487,1738399842365,-500.0,0.00016438,2]
[351181488,1738399842374,-500.0,0.00016438,2]
[351181489,1738399842383,-500.0,0.00016438,2]
[351181490,1738399842392,-621.1,0.00016438,2]
[351181491,1738399842401,-3925.91,0.00016438,2]
[351181492,1738399842411,-500.0,0.00016438,2]
[351181493,1738399842420,-500.0,0.00016438,2]
[351181494,1738399842429,-500.0,0.00016438,2]
[351181495,1738399842437,-500.0,0.00016438,2]
[351181496,1738399842446,-174.37,0.00016438,2]
[351181497,1738399842455,-150.0,0.00016469,2]
[351181498,1738399842464,-2887.0,0.000165,2]
[351181499,1738399842473,-1405.87757458,0.00016521,2]
[351181500,1738399842482,-150.0,0.00016535,2]
[351181501,1738399842490,-1696.26,0.00016572,2]
[351181502,1738399842500,-2076.17,0.00016572,2]
[351181503,1738399842510,-500.0,0.00016572,2]
[351181504,1738399842522,-627.0,0.00016572,2]
[351181505,1738399842538,-1370.4,0.00016572,2]
[351181506,1738399842547,-2146.42,0.00016572,2]
[351181507,1738399842558,-1850.47,0.00016572,2]
[351181508,1738399842568,-500.0,0.00016572,2]
[351181509,1738399842578,-1660.38,0.00016572,2]
[351181510,1738399842587,-750.93,0.00016572,2]
[351181511,1738399842597,-574.44,0.00016572,2]
[351181512,1738399842608,-813.13,0.00016572,2]
[351181513,1738399842619,-875.01,0.00016572,2]
[351181514,1738399842629,-691.33,0.00016572,2]
[351181515,1738399842639,-500.0,0.00016572,2]
[351181516,1738399842648,-3841.69,0.00016572,2]
[351181517,1738399842658,-500.0,0.00016573,2]
[351181518,1738399842667,-500.0,0.00016573,2]
[351181519,1738399842677,-597.53,0.00016573,2]
[351181520,1738399842690,-500.0,0.00016573,2]
[351181521,1738399842700,-573.61,0.00016573,2]
[351181522,1738399842710,-602.98,0.00016573,2]
[351181523,1738399842721,-556.07610711,0.00016573,2]
[351181524,1738399842730,-500.0,0.00016573,2]
[351181525,1738399842739,-500.0,0.00016573,2]
[351181526,1738399842748,-330.38630028,0.00016573,2]
[351181527,1738399842758,-500.0,0.00016573,2]
[351181528,1738399842768,-500.0,0.00016573,2]
[351181529,1738399842779,-500.0,0.00016573,2]
[351181530,1738399842788,-500.0,0.00016573,2]
[351181531,1738399842797,-620.13,0.00016573,2]
[351181532,1738399842806,-577.34,0.00016573,2]
[351181533,1738399842817,-560.57,0.00016573,2]
[351181534,1738399842827,-500.0,0.00016573,2]
[351181535,1738399842836,-643.59,0.00016573,2]
[351181536,1738399842846,-582.1,0.00016573,2]
[351181537,1738399842856,-500.0,0.00016573,2]
[351181538,1738399842866,-500.0,0.00016573,2]
[351181539,1738399842875,-500.0,0.00016573,2]
[351181540,1738399842885,-500.0,0.00016573,2]
[351181541,1738399842894,-500.0,0.00016573,2]
[351181542,1738399842903,-678.42,0.00016573,2]
[351181543,1738399842913,-500.0,0.00016573,2]
[351181544,1738399842922,-500.0,0.00016573,2]
[351181545,1738399842932,-500.0,0.00016573,2]
[351181546,1738399842942,-500.0,0.00016573,2]
[351181547,1738399842952,-500.0,0.00016573,2]
[351181548,1738399842961,-579.27,0.00016573,2]
[351181549,1738399842970,-500.0,0.00016573,2]
[351181550,1738399842978,-500.0,0.00016573,2]
[351181551,1738399842987,-500.0,0.00016573,2]
[351181552,1738399842996,-550.2,0.00016573,2]
[351181553,1738399843006,-500.0,0.00016573,2]
[351181554,1738399843015,-500.02,0.00016573,2]
[351181555,1738399843025,-500.0,0.00016573,2]
[351181556,1738399843034,-500.0,0.00016573,2]
[351181557,1738399843044,-500.0,0.00016573,2]
[351181558,1738399843053,-500.0,0.00016573,2]
[351181559,1738399843063,-500.0,0.00016573,2]
[351181560,1738399843073,-500.0,0.00016573,2]
[351181561,1738399843082,-662.8,0.00016573,2]
[351181562,1738399843091,-500.0,0.00016573,2]
[351181563,1738399843101,-500.0,0.00016573,2]
[351181564,1738399843110,-500.0,0.00016573,2]
[351181565,1738399843119,-592.49,0.00016573,2]
[351181566,1738399843129,-500.0,0.00016573,2]
[351181567,1738399843139,-500.0,0.00016573,2]
[351181569,1738399843148,-500.0,0.00016573,2]
[351181571,1738399843158,-525.12,0.00016573,2]
[351181572,1738399843167,-500.0,0.00016573,2]
[351181573,1738399843176,-500.0,0.00016573,2]
[351181574,1738399843186,-500.0,0.00016573,2]
[351181575,1738399843196,-574.76,0.00016573,2]
[351181576,1738399843205,-548.04,0.00016573,2]
[351181577,1738399843215,-579.05,0.00016573,2]
[351181578,1738399843224,-500.0,0.00016573,2]
[351181579,1738399843234,-500.0,0.00016573,2]
[351181580,1738399843245,-532.31,0.00016573,2]
[351181581,1738399843254,-500.0,0.00016573,2]
[351181582,1738399843264,-618.08,0.00016573,2]
[351181583,1738399843274,-602.13,0.00016573,2]
[351181584,1738399843283,-535.9,0.00016573,2]
[351181585,1738399843292,-553.2,0.00016573,2]
[351181586,1738399843302,-500.0,0.00016573,2]
[351181587,1738399843311,-500.0,0.00016573,2]
[351181588,1738399843322,-500.0,0.00016573,2]
[351181589,1738399843331,-817.74,0.00016573,2]
[351181590,1738399843340,-631.93,0.00016573,2]
[351181591,1738399843350,-500.0,0.00016573,2]
[351181592,1738399843359,-605.11,0.00016573,2]
[351181593,1738399843368,-500.0,0.00016573,2]
[351181594,1738399843377,-500.0,0.00016573,2]
[351181595,1738399843387,-963.48,0.00016573,2]
[351181596,1738399843396,-511.13,0.00016573,2]
[351181597,1738399843406,-942.08,0.00016573,2]
[351181598,1738399843415,-822.79,0.00016573,2]
[351181599,1738399843425,-823.23,0.00016573,2]
[351181600,1738399843434,-1026.47,0.00016573,2]
[351181601,1738399843443,-2387.81,0.00016573,2]
[351181602,1738399843453,-2708.74,0.00016573,2]
[351181603,1738399843462,-500.0,0.00016573,2]
[351181604,1738399843472,-1668.57,0.00016573,2]
[351181605,1738399843482,-500.0,0.00016573,2]
[351181606,1738399843491,-2362.46,0.00016573,2]
[351181607,1738399843500,-500.0,0.00016573,2]
[351181608,1738399843509,-683.25,0.00016573,2]
[351181609,1738399843519,-2132.08,0.00016573,2]
[351181610,1738399843528,-743.46,0.00016573,2]
[351181611,1738399843537,-739.76,0.00016573,2]
[351181612,1738399843546,-1903.33,0.00016573,2]
[351181613,1738399843555,-500.0,0.00016573,2]
[351181614,1738399843565,-1879.52,0.00016573,2]
[351181615,1738399843574,-2018.52,0.00016573,2]
[351181616,1738399843583,-500.0,0.00016573,2]
[351181617,1738399843593,-791.88,0.00016573,2]
[351181618,1738399843602,-500.0,0.00016573,2]
[351181619,1738399843612,-556.99857119,0.00016573,2]
[351181620,1738399843622,-2131.88,0.00016573,2]
[351181621,1738399843631,-500.0,0.00016573,2]
[351181622,1738399843641,-500.0,0.00016573,2]
[351181623,1738399843650,-636.58,0.00016573,2]
[351181624,1738399843660,-1092.53,0.00016573,2]
[351181625,1738399843670,-753.21,0.00016573,2]
[351181626,1738399843680,-500.0,0.00016573,2]
[351181627,1738399843694,-738.27,0.00016573,2]
[351181628,1738399843703,-538.96,0.00016573,2]
[351181629,1738399843713,-718.1,0.00016573,2]
[351181630,1738399843723,-500.0,0.00016573,2]
[351181631,1738399843732,-500.0,0.00016573,2]
[351181632,1738399843741,-569.97,0.00016573,2]
[351181633,1738399843751,-500.0,0.00016573,2]
[351181635,1738399843761,-1038.0,0.00016573,2]
[351181636,1738399843770,-500.0,0.00016573,2]
[351181637,1738399843780,-500.0,0.00016573,2]
[351181638,1738399843790,-500.0,0.00016573,2]
[351181639,1738399843799,-593.68,0.00016573,2]
[351181640,1738399843808,-953.41,0.00016573,2]
[351181641,1738399843819,-500.0,0.00016573,2]
[351181642,1738399843828,-500.0,0.00016573,2]
[351181643,1738399843838,-500.0,0.00016573,2]
[351181644,1738399843847,-500.0,0.00016573,2]
[351181645,1738399843856,-805.58,0.00016573,2]
[351181647,1738399843866,-500.0,0.00016573,2]
[351181649,1738399843875,-419.28276634,0.00016573,2]
[351181650,1738399843885,-500.0,0.00016573,2]
[351181652,1738399843894,-604.32,0.00016573,2]
[351181654,1738399843903,-500.0,0.00016573,2]
[351181656,1738399843912,-500.0,0.00016573,2]
[351181658,1738399843922,-837.34,0.00016573,2]
[351181659,1738399843931,-624.92,0.00016573,2]
[351181661,1738399843941,-534.99,0.00016573,2]
[351181663,1738399843951,-1283.13,0.00016573,2]
[351181665,1738399843960,-627.46,0.00016573,2]
[351181667,1738399843969,-500.0,0.00016573,2]
[351181668,1738399843978,-500.0,0.00016573,2]
[351181670,1738399843988,-626.07,0.00016573,2]
[351181672,1738399843997,-1335.88,0.00016573,2]
[351181674,1738399844007,-500.0,0.00016573,2]
[351181676,1738399844016,-2610.26,0.00016573,2]
[351181678,1738399844026,-500.0,0.00016573,2]
[351181680,1738399844035,-4833.97,0.00016573,2]
[351181681,1738399844044,-500.0,0.00016573,2]
[351181682,1738399844053,-500.0,0.00016573,2]
[351181683,1738399844062,-500.0,0.00016573,2]
[351181684,1738399844073,-500.0,0.00016573,2]
[351181685,1738399844082,-1465.33,0.00016574,2]
[351181686,1738399844091,-2282.45,0.00016574,2]
[351181687,1738399844100,-904.16,0.00016574,2]
[351181688,1738399844109,-1577.48,0.00016574,2]
[351181689,1738399844118,-500.0,0.00016574,2]
[351181690,1738399844129,-775.84,0.00016574,2]
[351181691,1738399844138,-1352.4,0.00016574,2]
[351181692,1738399844147,-1546.09,0.00016574,2]
[351181693,1738399844156,-500.0,0.00016574,2]
[351181694,1738399844165,-1000.0,0.00016574,2]
[351181695,1738399844174,-1383.7,0.00016574,2]
[351181696,1738399844184,-502.04,0.00016574,2]
[351181697,1738399844192,-2390.63,0.00016574,2]
[351181698,1738399844201,-635.47,0.00016574,2]
[351181699,1738399844210,-612.06764627,0.00016574,2]
[351181700,1738399844220,-500.0,0.00016574,2]
[351181701,1738399844229,-500.0,0.00016575,2]
[351181702,1738399844238,-648.53084358,0.00016575,2]
[351181703,1738399844247,-500.0,0.00016575,2]
[351181704,1738399844256,-500.0,0.00016575,2]
[351181705,1738399844265,-500.0,0.00016575,2]
[351181706,1738399844274,-500.0,0.00016575,2]
[351181707,1738399844283,-500.0,0.00016575,2]
[351181708,1738399844292,-500.0,0.00016575,2]
[351181709,1738399844301,-500.0,0.00016575,2]
[351181710,1738399844310,-249.66947557,0.00016575,2]
[351181711,1738399844319,-500.0,0.00016575,2]
[351181712,1738399844328,-500.0,0.00016575,2]
[351181713,1738399844339,-500.0,0.00016575,2]
[351181714,1738399844349,-500.0,0.00016575,2]
[351181715,1738399844358,-500.0,0.00016575,2]
[351181716,1738399844367,-240.69,0.00016575,2]
[351181717,1738399844377,-500.0,0.00016575,2]
[351181718,1738399844386,-500.0,0.00016575,2]
[351181719,1738399844395,-500.0,0.00016575,2]
[351181720,1738399844404,-500.0,0.00016575,2]
[351181721,1738399844413,-500.0,0.00016575,2]
[351181722,1738399844422,-500.0,0.00016575,2]
[351181723,1738399844432,-500.0,0.00016575,2]
[351181724,1738399844441,-500.0,0.00016575,2]
[351181725,1738399844450,-500.0,0.00016575,2]
[351181726,1738399844586,-500.0,0.00016575,2]
[351181727,1738399844595,-500.0,0.00016575,2]
[351181728,1738399844604,-500.0,0.00016575,2]
[351181729,1738399844614,-500.0,0.00016575,2]
[351181730,1738399844624,-528.19,0.00016575,2]
[351181731,1738399844634,-160.19,0.00016575,2]
[351181732,1738399844643,-500.0,0.00016575,2]
[351181733,1738399844652,-500.0,0.00016575,2]
[351181734,1738399844662,-347.41,0.00016575,2]
[351181735,1738399844671,-500.0,0.00016575,2]
[351181736,1738399844681,-500.0,0.00016575,2]
[351181737,1738399844695,-500.0,0.00016575,2]
[351181738,1738399844703,-500.0,0.00016575,2]
[351181739,1738399844712,-500.0,0.00016575,2]
[351181740,1738399844722,-500.0,0.00016575,2]
[351181741,1738399844733,-500.0,0.00016575,2]
[351181742,1738399844742,-500.0,0.00016575,2]
[351181743,1738399844752,-500.0,0.00016575,2]
[351181744,1738399844761,-187.57574087,0.00016575,2]
[351181745,1738399844772,-513.27641335,0.00016575,2]
[351181746,1738399844782,-500.0,0.00016575,2]
[351181747,1738399844791,-525.68,0.00016575,2]
[351181748,1738399844800,-500.0,0.00016575,2]
[351181749,1738399844809,-761.75,0.00016575,2]
[351181750,1738399844819,-500.0,0.00016575,2]
[351181751,1738399844829,-620.94,0.00016575,2]
[351181752,1738399844838,-500.0,0.00016575,2]
[351181753,1738399844847,-500.0,0.00016575,2]
[351181754,1738399844856,-500.0,0.00016575,2]
[351181755,1738399844865,-688.17,0.00016575,2]
[351181756,1738399844874,-520.63,0.00016575,2]
[351181757,1738399844884,-500.0,0.00016575,2]
[351181758,1738399844893,-500.0,0.00016575,2]
[351181759,1738399844902,-546.29,0.00016575,2]
[351181760,1738399844911,-383.77934829,0.00016575,2]
[351181761,1738399844920,-500.0,0.00016575,2]
[351181762,1738399844929,-500.0,0.00016575,2]
[351181763,1738399844939,-500.0,0.00016575,2]
[351181764,1738399844947,-500.0,0.00016575,2]
[351181765,1738399844956,-500.0,0.00016575,2]
[351181766,1738399844966,-152.2,0.00016575,2]
[351181767,1738399844975,-706.17,0.00016575,2]
[351181768,1738399844984,-572.48879884,0.00016575,2]
[351181769,1738399844993,-500.0,0.00016575,2]
[351181770,1738399845002,-500.0,0.00016575,2]
[351181771,1738399845011,-500.0,0.00016575,2]
[351181772,1738399845020,-500.0,0.00016575,2]
[351181773,1738399845030,-500.0,0.00016575,2]
[351181774,1738399845039,-500.0,0.00016575,2]
[351181775,1738399845048,-500.0,0.00016575,2]
[351181776,1738399845057,-375.56235334,0.00016575,2]
[351181777,1738399845067,-500.0,0.00016575,2]
[351181778,1738399845076,-825.63,0.00016575,2]
[351181779,1738399845085,-500.0,0.00016575,2]
[351181780,1738399845095,-598.4,0.00016575,2]
[351181781,1738399845103,-500.0,0.00016575,2]
[351181782,1738399845112,-500.0,0.00016575,2]
[351181783,1738399845121,-500.0,0.00016575,2]
[351181784,1738399845130,-500.0,0.00016575,2]
[351181785,1738399845139,-726.45,0.00016575,2]
[351181786,1738399845148,-500.0,0.00016575,2]
[351181787,1738399845158,-200.0,0.00016575,2]
[351181788,1738399845167,-500.0,0.00016575,2]
[351181789,1738399845176,-1157.25,0.00016575,2]
[351181790,1738399845184,-500.0,0.00016575,2]
[351181791,1738399845193,-500.0,0.00016575,2]
[351181792,1738399845203,-500.0,0.00016575,2]
[351181793,1738399845212,-450.302109,0.00016575,2]
[351181794,1738399845221,-500.0,0.00016575,2]
[351181795,1738399845230,-220.28459134,0.00016575,2]
[351181796,1738399845239,-500.0,0.00016575,2]
[351181797,1738399845247,-500.0,0.00016575,2]
[351181798,1738399845256,-500.0,0.00016575,2]
[351181799,1738399845266,-591.81,0.00016575,2]
[351181800,1738399845275,-500.0,0.00016575,2]
[351181801,1738399845283,-623.01,0.00016575,2]
[351181802,1738399845292,-500.0,0.00016575,2]
[351181803,1738399845301,-1237.86,0.00016575,2]
[351181804,1738399845310,-500.0,0.00016575,2]
[351181805,1738399845320,-794.39,0.00016575,2]
[351181806,1738399845329,-500.0,0.00016575,2]
[351181807,1738399845338,-191.64,0.00016575,2]
[351181808,1738399845347,-231.84448962,0.00016575,2]
[351181809,1738399845356,-500.0,0.00016575,2]
[351181810,1738399845366,-500.0,0.00016575,2]
[351181811,1738399845375,-900.16,0.00016575,2]
[351181812,1738399845384,-1144.92,0.00016575,2]
[351181813,1738399845393,-500.0,0.00016575,2]
[351181814,1738399845402,-445.813525,0.00016575,2]
[351181815,1738399845411,-500.0,0.00016575,2]
[351181816,1738399845420,-1330.79,0.00016575,2]
[351181817,1738399845429,-873.52,0.00016575,2]
[351181818,1738399845439,-476.84776062,0.00016575,2]
[351181819,1738399845448,-1097.36,0.00016575,2]
[351181820,1738399845458,-500.0,0.00016575,2]
[351181821,1738399845467,-911.22,0.00016575,2]
[351181822,1738399845477,-796.08,0.00016575,2]
[351181823,1738399845486,-500.0,0.00016575,2]
[351181824,1738399845495,-500.0,0.00016575,2]
[351181825,1738399845506,-500.0,0.00016575,2]
[351181826,1738399845516,-2074.04,0.00016575,2]
[351181827,1738399845525,-667.67,0.00016575,2]
[351181828,1738399845533,-500.0,0.00016575,2]
[351181829,1738399845543,-500.0,0.00016575,2]
[351181830,1738399845553,-1244.07,0.00016575,2]
[351181831,1738399845562,-500.0,0.00016575,2]
[351181832,1738399845573,-2707.78,0.00016575,2]
[351181833,1738399845582,-796.81,0.00016575,2]
[351181834,1738399845591,-1529.22,0.00016575,2]
[351181835,1738399845600,-500.0,0.00016575,2]
[351181836,1738399845610,-917.48,0.00016575,2]
[351181837,1738399845619,-500.0,0.00016575,2]
[351181838,1738399845628,-1471.11,0.00016575,2]
[351181839,1738399845637,-500.0,0.00016575,2]
[351181840,1738399845646,-1512.35,0.00016575,2]
[351181841,1738399845655,-500.0,0.00016575,2]
[351181842,1738399845664,-500.0,0.00016575,2]
[351181843,1738399845673,-818.52,0.00016575,2]
[351181844,1738399845683,-2864.2,0.00016575,2]
[351181845,1738399845695,-1217.27,0.00016575,2]
[351181846,1738399845704,-961.91,0.00016575,2]
[351181847,1738399845716,-1419.87,0.00016575,2]
[351181848,1738399845733,-500.0,0.00016575,2]
[351181849,1738399845746,-500.0,0.00016575,2]
[351181850,1738399845757,-580.81,0.00016575,2]
[351181851,1738399845772,-500.0,0.00016575,2]
[351181852,1738399845786,-500.0,0.00016575,2]
[351181853,1738399845801,-500.0,0.00016575,2]
[351181854,1738399845818,-500.0,0.00016575,2]
[351181855,1738399845830,-500.0,0.00016575,2]
[351181856,1738399845841,-515.75,0.00016575,2]
[351181857,1738399845855,-902.94,0.00016575,2]
[351181858,1738399845868,-507.99,0.00016575,2]
[351181859,1738399845883,-1453.2,0.00016575,2]
[351181860,1738399845898,-500.0,0.00016575,2]
[351181861,1738399845912,-500.0,0.00016575,2]
[351181862,1738399845925,-798.92,0.00016575,2]
[351181863,1738399845941,-2365.3,0.00016575,2]
[351181864,1738399845954,-500.0,0.00016575,2]
[351181865,1738399845966,-500.0,0.00016575,2]
[351181866,1738399845980,-779.0,0.00016575,2]
[351181867,1738399845993,-633.18,0.00016575,2]
[351181868,1738399846008,-507.66,0.00016575,2]
[351181869,1738399846019,-500.0,0.00016575,2]
[351181870,1738399846031,-1043.13,0.00016575,2]
[351181871,1738399846043,-339.17786526,0.00016575,2]
[351181872,1738399846055,-500.0,0.00016575,2]
[351181873,1738399846070,-1567.89,0.00016575,2]
[351181874,1738399846081,-910.38,0.00016575,2]
[351181875,1738399846091,-500.0,0.00016575,2]
[351181876,1738399846104,-1273.65,0.00016575,2]
[351181877,1738399846118,-500.0,0.00016575,2]
[351181878,1738399846130,-879.55,0.00016575,2]
[351181879,1738399846141,-601.78,0.00016575,2]
[351181880,1738399846152,-1015.54,0.00016575,2]
[351181881,1738399846164,-500.0,0.00016575,2]
[351181882,1738399846176,-2958.79,0.00016575,2]
[351181883,1738399846187,-500.0,0.00016575,2]
[351181884,1738399846199,-761.06,0.00016575,2]
[351181885,1738399846212,-572.04,0.00016575,2]
[351181886,1738399846224,-500.0,0.00016575,2]
[351181887,1738399846236,-500.0,0.00016575,2]
[351181888,1738399846247,-500.0,0.00016575,2]
[351181891,1738399846260,-621.1,0.00016575,2]
[351181893,1738399846271,-3925.91,0.00016575,2]
[351181895,1738399846283,-527.82900753,0.00016575,2]
[351181899,1738399846295,-500.0,0.00016575,2]
[351181901,1738399846307,-500.0,0.00016575,2]
[351181904,1738399846321,-13194.18316258,0.00016589,2]
[351181906,1738399846333,-1794.0193,0.00016612,2]
[351181909,1738399846345,-1405.87757458,0.00016624,2]
[351181912,1738399846360,-3732.76259945,0.00016652,2]
[351181914,1738399846372,-187.74,0.00016658,30]
[351181917,1738399846384,-150.0,0.00016683,2]
[351181918,1738399846396,-400.0,0.000167,6]
[351181919,1738399846408,-1696.26,0.00016709,2]
[351181920,1738399846420,-2076.17,0.00016709,2]
[351181921,1738399846432,-500.0,0.00016709,2]
[351181922,1738399846444,-627.0,0.00016709,2]
[351181923,1738399846455,-1370.4,0.00016709,2]
[351181924,1738399846467,-2146.42,0.00016709,2]
[351181925,1738399846479,-1850.47,0.00016709,2]
[351181926,1738399846490,-500.0,0.00016709,2]
[351181927,1738399846502,-1660.38,0.00016709,2]
[351181928,1738399846514,-750.93,0.00016709,2]
[351181929,1738399846526,-348.99472919,0.00016709,2]
[351181930,1738399846538,-574.44,0.00016709,2]
[351181931,1738399846550,-813.13,0.00016709,2]
[351181932,1738399846562,-875.01,0.00016709,2]
[351181933,1738399846575,-691.33,0.00016709,2]
[351181934,1738399846587,-3841.69,0.00016709,2]
[351181935,1738399846599,-500.0,0.0001671,2]
[351181936,1738399846611,-597.53,0.0001671,2]
[351181937,1738399846623,-602.98,0.0001671,2]
[351181938,1738399846635,-500.0,0.0001671,2]
[351181939,1738399846647,-500.0,0.0001671,2]
[351181940,1738399846659,-500.0,0.0001671,2]
[351181941,1738399846671,-500.0,0.0001671,2]
[351181942,1738399846684,-500.0,0.0001671,2]
[351181943,1738399846698,-500.0,0.0001671,2]
[351181944,1738399846709,-643.59,0.0001671,2]
[351181945,1738399846720,-582.1,0.0001671,2]
[351181946,1738399846734,-268.78718162,0.0001671,2]
[351181947,1738399846745,-678.42,0.0001671,2]
[351181948,1738399846757,-426.46,0.0001671,2]
[351181949,1738399846771,-500.0,0.0001671,2]
[351181950,1738399846783,-500.0,0.0001671,2]
[351181951,1738399846795,-244.94,0.0001671,2]
[351181952,1738399846807,-500.0,0.0001671,2]
[351181953,1738399846820,-500.0,0.0001671,2]
[351181954,1738399846832,-500.0,0.0001671,2]
[351181955,1738399846844,-229.26,0.0001671,2]
[351181956,1738399846857,-662.8,0.0001671,2]
[351181957,1738399846870,-308.14,0.0001671,2]
[351181958,1738399846881,-500.0,0.0001671,2]
[351181959,1738399846894,-500.0,0.0001671,2]
[351181960,1738399846906,-400.29,0.0001671,2]
[351181961,1738399846918,-525.12,0.0001671,2]
[351181962,1738399846930,-500.0,0.0001671,2]
[351181963,1738399846942,-500.0,0.0001671,2]
[351181964,1738399846954,-548.04,0.0001671,2]
[351181965,1738399846966,-500.0,0.0001671,2]
[351181966,1738399846978,-500.0,0.0001671,2]
[351181967,1738399846990,-618.08,0.0001671,2]
[351181968,1738399847001,-602.13,0.0001671,2]
[351181969,1738399847014,-535.9,0.0001671,2]
[351181970,1738399847026,-553.2,0.0001671,2]
[351181971,1738399847038,-500.0,0.0001671,2]
[351181972,1738399847050,-500.0,0.0001671,2]
[351181973,1738399847062,-817.74,0.0001671,2]
[351181974,1738399847074,-631.93,0.0001671,2]
[351181975,1738399847087,-605.11,0.0001671,2]
[351181976,1738399847099,-963.48,0.0001671,2]
[351181977,1738399847112,-511.13,0.0001671,2]
[351181978,1738399847124,-942.08,0.0001671,2]
[351181979,1738399847137,-822.79,0.0001671,2]
[351181980,1738399847146,-823.23,0.0001671,2]
[351181981,1738399847156,-1026.47,0.0001671,2]
[351181982,1738399847165,-2387.81,0.0001671,2]
[351181983,1738399847175,-2708.74,0.0001671,2]
[351181984,1738399847185,-500.0,0.0001671,2]
[351181985,1738399847194,-1668.57,0.0001671,2]
[351181986,1738399847203,-500.0,0.0001671,2]
[351181987,1738399847435,-2362.46,0.0001671,2]
[351181988,1738399847447,-683.25,0.0001671,2]
[351181989,1738399847456,-500.0,0.0001671,2]
[351181990,1738399847466,-2132.08,0.0001671,2]
[351181991,1738399847475,-743.46,0.0001671,2]
[351181992,1738399847484,-739.76,0.0001671,2]
[351181993,1738399847494,-1903.33,0.0001671,2]
[351181994,1738399847503,-500.0,0.0001671,2]
[351181995,1738399847513,-1879.52,0.0001671,2]
[351181996,1738399847522,-2018.52,0.0001671,2]
[351181997,1738399847531,-500.0,0.0001671,2]
[351181998,1738399847540,-791.88,0.0001671,2]
[351181999,1738399847549,-500.0,0.0001671,2]
[351182000,1738399847558,-2131.88,0.0001671,2]
[351182001,1738399847570,-500.0,0.0001671,2]
[351182002,1738399847580,-500.0,0.0001671,2]
[351182003,1738399847589,-636.58,0.0001671,2]
[351182004,1738399847599,-1092.53,0.0001671,2]
[351182005,1738399847608,-753.21,0.0001671,2]
[351182006,1738399847617,-500.0,0.0001671,2]
[351182007,1738399847627,-738.27,0.0001671,2]
[351182008,1738399847636,-538.96,0.0001671,2]